[Event "European Amateur-ch U1700 2019"]
[Site "Rhodes"]
[Date "2019.04.12"]
[Round "7.4"]
[White "Pereverzev, Timofei"]
[Black "Pantelic, Slobodan"]
[Result "1-0"]
[ECO "B54"]
[WhiteElo "1463"]
[BlackElo "1646"]
[Annotator "NA"]
[PlyCount "93"]
[EventDate "2019.04.06"]
[EventType "swiss"]
[EventCountry "GRE"]
[SourceTitle "playchess.com"]
[Source "ChessBase"]
[SourceQuality "1"]
[TimeControl "40/5400+30:1800+30"]

1. e4 {[%emt 0:00:00]} c5 {[%emt 0:01:46]} 2. Nf3 {[%emt 0:00:00]} e6 {[%emt 0:00:04]} 3. d4 {[%emt 0:00:00]} cxd4 {[%emt 0:00:18]} 4. Nxd4 {[%emt 0:00:00]} a6 {[%emt 0:00:29]} 5. c4 {[%emt 0:01:26]} Nf6 {[%emt 0:00:04]} 6. Nc3 {[%emt 0:00:04]} d6 {[%emt 0:00:02]} 7. Be3 {[%emt 0:00:09]} Bd7 {[%emt 0:00:36]} 8. Be2 {[%emt 0:00:30]} Be7 {[%emt 0:00:02]} 9. O-O {[%emt 0:00:07]} O-O {[%emt 0:00:09]} 10. f4 {[%emt 0:00:13]} Nc6 {[%emt 0:00:02]} 11. Kh1 {[%emt 0:00:05]} Rc8 {[%emt 0:00:03]} 12. a4 {[%emt 0:01:24]} Qc7 {[%emt 0:00:04]} 13. g4 {[%emt 0:01:09]} Nxd4 {[%emt 0:00:09]} 14. Bxd4 {[%emt 0:00:37]} Bc6 {[%emt 0:00:02]} 15. Bf3 {[%emt 0:00:11]} e5 {[%emt 0:00:14]} 16. Be3 {[%emt 0:00:17]} Bd7 {[%emt 0:00:21]} 17. g5 {[%emt 0:00:33]} Ne8 {[%emt 0:00:08]} 18. Nd5 {[%emt 0:00:05]} Qd8 {[%emt 0:00:06]} 19. Bb6 {[%emt 0:00:04]} Nc7 {[%emt 0:00:04]} 20. h4 {[%emt 0:01:06]} exf4 {[%emt 0:00:14]} 21. Qd2 {[%emt 0:00:25]} Be6 {[%emt 0:00:16]} 22. Nxc7 {[%emt 0:00:11]} Rxc7 {[%emt 0:00:05]} 23. Qa5 {[%emt 0:00:05]} Rc5 {[%emt 0:00:08]} 24. Bxd8 {[%emt 0:00:48]} Rxa5 {[%emt 0:00:04]} 25. Bxa5 {[%emt 0:00:05]} Bxc4 {[%emt 0:00:03]} 26. Rfc1 {[%emt 0:00:11]} b5 {[%emt 0:00:43]} 27. axb5 {[%emt 0:01:20]} axb5 {[%emt 0:00:02]} 28. Bd2 {[%emt 0:00:12]} f5 {[%emt 0:00:23]} 29. exf5 {[%emt 0:00:38]} Rxf5 {[%emt 0:00:05]} 30. Ra8+ {[%emt 0:00:03]} Kf7 {[%emt 0:00:04]} 31. Bg4 {[%emt 0:03:18]} Bd5+ {[%emt 0:00:15]} 32. Kg1 {[%emt 0:00:16]} Re5 {[%emt 0:00:09]} 33. Rac8 {[%emt 0:00:19]} f3 {[%emt 0:00:04]} 34. Rf1 {[%emt 0:00:26]} Re2 {[%emt 0:00:34]} 35. Bxf3 {[%emt 0:00:42]} Bxf3 {[%emt 0:00:14]} 36. Rxf3+ {[%emt 0:00:04]} Kg6 {[%emt 0:00:02]} 37. Bc3 {[%emt 0:00:17]} d5 {[%emt 0:00:14]} 38. Rg8 {[%emt 0:00:36]} Bc5+ {[%emt 0:00:03]} 39. Kf1 {[%emt 0:00:10]} Re7 {[%emt 0:00:10]} 40. Bxg7 {[%emt 0:00:25]} Rxg7 {[%emt 0:00:16]} 41. Rf6+ {[%emt 0:00:04]} Kh5 {[%emt 0:00:05]} 42. Rxg7 {[%emt 0:00:05]} Kxh4 {[%emt 0:00:01]} 43. g6 {[%emt 0:00:10]} h5 {[%emt 0:00:16]} 44. Rgf7 {[%emt 0:00:16]} Bd4 {[%emt 0:00:07]} 45. g7 {[%emt 0:00:09]} Bxf6 {[%emt 0:00:23]} 46. Rxf6 {[%emt 0:00:04]} Kg5 {[%emt 0:00:20]} 47. Rf8 {[%emt 0:00:04]} 1-0

[Event "European Amateur-ch U1700 2019"]
[Site "Rhodes"]
[Date "2019.04.12"]
[Round "7.5"]
[White "Kanev, Evgeny"]
[Black "Kalpakidis, Daniel Kyriakos"]
[Result "1-0"]
[ECO "E16"]
[WhiteElo "1629"]
[BlackElo "1211"]
[Annotator "NA"]
[PlyCount "85"]
[EventDate "2019.04.06"]
[EventType "swiss"]
[EventCountry "GRE"]
[SourceTitle "playchess.com"]
[Source "ChessBase"]
[SourceQuality "1"]
[TimeControl "40/5400+30:1800+30"]

1. d4 {[%emt 0:00:00]} d5 {[%emt 0:00:00]} 2. c4 {[%emt 0:00:00]} e6 {[%emt 0:00:00]} 3. Nf3 {[%emt 0:00:00]} b6 {[%emt 0:00:00]} 4. g3 {[%emt 0:00:00]} Bb7 {[%emt 0:00:13]} 5. Bg2 {[%emt 0:00:00]} Nf6 {[%emt 0:00:24]} 6. O-O {[%emt 0:00:08]} Bd6 {[%emt 0:00:08]} 7. Nc3 {[%emt 0:00:40]} O-O {[%emt 0:00:22]} 8. Re1 {[%emt 0:05:35]} Ne4 {[%emt 0:00:59]} 9. Nd2 {[%emt 0:08:42]} f5 {[%emt 0:00:28]} 10. f4 {[%emt 0:08:02]} Rf6 {[%emt 0:01:52]} 11. Ndxe4 {[%emt 0:03:21]} dxe4 {[%emt 0:01:48]} 12. b3 {[%emt 0:07:40]} Rh6 {[%emt 0:01:09]} 13. Be3 {[%emt 0:15:28]} Qe8 {[%emt 0:00:36]} 14. c5 {[%emt 0:01:18]} Be7 {[%emt 0:02:48]} 15. b4 {[%emt 0:07:43]} Qh5 {[%emt 0:01:06]} 16. Kf2 {[%emt 0:08:14]} Nd7 {[%emt 0:02:04]} 17. Qb3 {[%emt 0:01:32]} Kf7 {[%emt 0:03:07]} 18. d5 {[%emt 0:02:32]} Nf6 {[%emt 0:05:40]} 19. dxe6+ {[%emt 0:00:15]} Kf8 {[%emt 0:00:48]} 20. h3 {[%emt 0:00:11]} Rg6 {[%emt 0:02:22]} 21. Rg1 {[%emt 0:06:47]} Ng4+ {[%emt 0:32:51]} 22. hxg4 {[%emt 0:00:02]} Qxg4 {[%emt 0:00:18]} 23. Kf1 {[%emt 0:05:48]} Qxg3 {[%emt 0:02:30]} 24. Nd5 {[%emt 0:11:25]} Qh4 {[%emt 0:21:34]} 25. Bf2 {[%emt 0:04:16]} Qh2 {[%emt 0:02:28]} 26. Nxe7 {[%emt 0:00:22]} Kxe7 {[%emt 0:00:08]} 27. Qe3 {[%emt 0:02:12]} Rd8 {[%emt 0:03:01]} 28. Rc1 {[%emt 0:00:19]} Rxe6 {[%emt 0:12:58]} 29. Rh1 {[%emt 0:00:17]} Qxh1+ {[%emt 0:01:01]} 30. Bxh1 {[%emt 0:00:02]} Rh6 {[%emt 0:01:28]} 31. Bg2 {[%emt 0:00:19]} b5 {[%emt 0:00:34]} 32. c6 {[%emt 0:00:24]} Bc8 {[%emt 0:00:18]} 33. Qc5+ {[%emt 0:00:15]} Kf7 {[%emt 0:00:12]} 34. Qxa7 {[%emt 0:00:27]} Rhd6 {[%emt 0:00:52]} 35. Bh4 {[%emt 0:00:08]} Rd1+ {[%emt 0:00:47]} 36. Rxd1 {[%emt 0:00:01]} Rxd1+ {[%emt 0:00:01]} 37. Kf2 {[%emt 0:00:14]} Be6 {[%emt 0:00:41]} 38. Qxc7+ {[%emt 0:00:07]} Kg6 {[%emt 0:00:08]} 39. Qe7 {[%emt 0:00:22]} Bc4 {[%emt 0:00:55]} 40. Bxe4 {[%emt 0:01:26]} fxe4 {[%emt 0:00:24]} 41. Qxe4+ {[%emt 0:00:10]} Kh5 {[%emt 0:00:07]} 42. Qf5+ {[%emt 0:00:13]} Kh6 {[%emt 0:00:24]} 43. Qg5# {[%emt 0:00:05]} 1-0

[Event "European Amateur-ch U1700 2019"]
[Site "Rhodes"]
[Date "2019.04.12"]
[Round "7.6"]
[White "Badrakova, Kseniya"]
[Black "Bakhmanov, Farid"]
[Result "0-1"]
[ECO "B01"]
[WhiteElo "1435"]
[BlackElo "1491"]
[Annotator "NA"]
[PlyCount "80"]
[EventDate "2019.04.06"]
[EventType "swiss"]
[EventCountry "GRE"]
[SourceTitle "playchess.com"]
[Source "ChessBase"]
[SourceQuality "1"]
[TimeControl "40/5400+30:1800+30"]

1. e4 {[%emt 0:00:00]} d5 {[%emt 0:00:00]} 2. exd5 {[%emt 0:00:05]} Qxd5 {[%emt 0:00:00]} 3. Nc3 {[%emt 0:00:06]} Qd6 {[%emt 0:00:00]} 4. d4 {[%emt 0:00:09]} Nf6 {[%emt 0:00:00]} 5. Nf3 {[%emt 0:00:12]} c6 {[%emt 0:00:06]} 6. Bd3 {[%emt 0:02:54]} Bg4 {[%emt 0:00:14]} 7. Be3 {[%emt 0:00:32]} e6 {[%emt 0:00:14]} 8. h3 {[%emt 0:01:51]} Bh5 {[%emt 0:00:23]} 9. g4 {[%emt 0:03:09]} Bg6 {[%emt 0:00:12]} 10. Ne5 {[%emt 0:09:29]} Bxd3 {[%emt 0:10:47]} 11. Qxd3 {[%emt 0:05:37]} Nbd7 {[%emt 0:01:38]} 12. Bf4 {[%emt 0:08:24]} Nxe5 {[%emt 0:04:22]} 13. Bxe5 {[%emt 0:00:41]} Qd8 {[%emt 0:02:44]} 14. O-O-O {[%emt 0:03:16]} Bd6 {[%emt 0:02:26]} 15. Kb1 {[%emt 0:04:34]} Bxe5 {[%emt 0:02:59]} 16. dxe5 {[%emt 0:01:02]} Qxd3 {[%emt 0:00:35]} 17. Rxd3 {[%emt 0:01:02]} Nd5 {[%emt 0:00:33]} 18. Ne4 {[%emt 0:03:25]} Ke7 {[%emt 0:01:15]} 19. c4 {[%emt 0:11:15]} Nf4 {[%emt 0:20:18]} 20. Rb3 {[%emt 0:12:12]} b6 {[%emt 0:05:33]} 21. Rf1 {[%emt 0:12:33]} Rhd8 {[%emt 0:01:33]} 22. Kc2 {[%emt 0:05:04]} Rd4 {[%emt 0:03:01]} 23. Nd2 {[%emt 0:00:47]} Rad8 {[%emt 0:01:31]} 24. Rd1 {[%emt 0:03:10]} Ng6 {[%emt 0:00:21]} 25. Re3 {[%emt 0:01:02]} Nf4 {[%emt 0:07:27]} 26. Re4 {[%emt 0:00:50]} Nxh3 {[%emt 0:01:22]} 27. Rxd4 {[%emt 0:00:12]} Rxd4 {[%emt 0:00:06]} 28. f3 {[%emt 0:02:40]} Nf4 {[%emt 0:01:31]} 29. Re1 {[%emt 0:01:21]} h5 {[%emt 0:17:56]} 30. gxh5 {[%emt 0:02:54]} Nxh5 {[%emt 0:00:05]} 31. Rh1 {[%emt 0:00:07]} Ng3 {[%emt 0:03:46]} 32. Re1 {[%emt 0:02:47]} Nf5 {[%emt 0:01:58]} 33. Kc3 {[%emt 0:00:32]} c5 {[%emt 0:03:56]} 34. Ne4 {[%emt 0:00:48]} Nh4 {[%emt 0:02:24]} 35. Rf1 {[%emt 0:01:18]} Nxf3 {[%emt 0:00:44]} 36. Nd6 {[%emt 0:00:39]} Nxe5 {[%emt 0:00:22]} 37. Nc8+ {[%emt 0:00:53]} Kd7 {[%emt 0:00:16]} 38. Nxa7 {[%emt 0:00:08]} Rxc4+ {[%emt 0:00:15]} 39. Kb3 {[%emt 0:00:25]} Rd4 {[%emt 0:05:45]} 40. Nb5 {[%emt 0:00:30]} Rb4+ {[%emt 0:00:12]} 0-1

[Event "European Amateur-ch U1700 2019"]
[Site "Rhodes"]
[Date "2019.04.12"]
[Round "7.9"]
[White "Rammos, Ilias"]
[Black "Grishina, Zhanna"]
[Result "1/2-1/2"]
[ECO "B89"]
[WhiteElo "1040"]
[BlackElo "1482"]
[Annotator "NA"]
[PlyCount "133"]
[EventDate "2019.04.06"]
[EventType "swiss"]
[EventCountry "GRE"]
[SourceTitle "playchess.com"]
[Source "ChessBase"]
[SourceQuality "1"]
[TimeControl "40/5400+30:1800+30"]

1. e4 {[%emt 0:00:00]} c5 {[%emt 0:00:00]} 2. Nf3 {[%emt 0:00:45]} Nc6 {[%emt 0:00:00]} 3. d4 {[%emt 0:00:16]} cxd4 {[%emt 0:00:00]} 4. Nxd4 {[%emt 0:00:07]} Nf6 {[%emt 0:00:00]} 5. Nc3 {[%emt 0:00:47]} e6 {[%emt 0:00:44]} 6. Bc4 {[%emt 0:12:48]} Be7 {[%emt 0:01:16]} 7. Be3 {[%emt 0:05:33]} d6 {[%emt 0:00:47]} 8. Qd2 {[%emt 0:06:09]} Ng4 {[%emt 0:01:27]} 9. O-O-O {[%emt 0:02:08]} Nxe3 {[%emt 0:00:05]} 10. fxe3 {[%emt 0:01:22]} Ne5 {[%emt 0:06:33]} 11. Bb3 {[%emt 0:02:25]} O-O {[%emt 0:05:56]} 12. Rdf1 {[%emt 0:01:37]} a6 {[%emt 0:01:52]} 13. Nf3 {[%emt 0:07:57]} Nd7 {[%emt 0:02:23]} 14. h4 {[%emt 0:01:04]} Nc5 {[%emt 0:00:31]} 15. h5 {[%emt 0:01:52]} b5 {[%emt 0:02:36]} 16. h6 {[%emt 0:03:50]} g6 {[%emt 0:00:21]} 17. Qd4 {[%emt 0:00:38]} Nxb3+ {[%emt 0:04:21]} 18. cxb3 {[%emt 0:00:38]} f6 {[%emt 0:00:46]} 19. Ng5 {[%emt 0:01:13]} e5 {[%emt 0:00:29]} 20. Qd5+ {[%emt 0:00:09]} Kh8 {[%emt 0:02:42]} 21. Nf7+ {[%emt 0:01:06]} Rxf7 {[%emt 0:00:07]} 22. Qxf7 {[%emt 0:00:10]} Qf8 {[%emt 0:00:11]} 23. Rxf6 {[%emt 0:00:43]} Bb7 {[%emt 0:05:06]} 24. Qxf8+ {[%emt 0:01:35]} Bxf8 {[%emt 0:00:42]} 25. Rhf1 {[%emt 0:00:47]} Bxh6 {[%emt 0:00:22]} 26. Rxd6 {[%emt 0:02:43]} Bxe3+ {[%emt 0:03:58]} 27. Kb1 {[%emt 0:00:30]} Kg8 {[%emt 0:02:44]} 28. Rd7 {[%emt 0:02:28]} Bc6 {[%emt 0:00:26]} 29. Rc7 {[%emt 0:00:26]} Be8 {[%emt 0:00:52]} 30. Nd5 {[%emt 0:00:06]} Bg5 {[%emt 0:01:30]} 31. Nf6+ {[%emt 0:05:16]} Bxf6 {[%emt 0:01:24]} 32. Rxf6 {[%emt 0:00:02]} h5 {[%emt 0:08:45]} 33. Re6 {[%emt 0:02:31]} g5 {[%emt 0:00:15]} 34. Rxe5 {[%emt 0:00:10]} g4 {[%emt 0:00:10]} 35. Rg5+ {[%emt 0:00:16]} Kf8 {[%emt 0:02:20]} 36. e5 {[%emt 0:01:49]} Rd8 {[%emt 0:02:01]} 37. Rgg7 {[%emt 0:03:32]} Rd5 {[%emt 0:05:27]} 38. e6 {[%emt 0:01:28]} Re5 {[%emt 0:01:13]} 39. Rh7 {[%emt 0:00:11]} Bg6+ {[%emt 0:00:01]} 40. Kc1 {[%emt 0:00:00]} Bxh7 {[%emt 0:00:00]} 41. Rxh7 {[%emt 0:02:09]} Kg8 {[%emt 0:01:33]} 42. Re7 {[%emt 0:03:56]} h4 {[%emt 0:03:01]} 43. Rd7 {[%emt 0:05:13]} Rxe6 {[%emt 0:01:13]} 44. Rd4 {[%emt 0:00:08]} Rg6 {[%emt 0:00:46]} 45. Kd1 {[%emt 0:00:28]} Kg7 {[%emt 0:04:52]} 46. a4 {[%emt 0:01:27]} Kh6 {[%emt 0:06:11]} 47. Ke2 {[%emt 0:06:53]} Kh5 {[%emt 0:07:17]} 48. axb5 {[%emt 0:18:59]} axb5 {[%emt 0:00:28]} 49. Rd5+ {[%emt 0:03:35]} Rg5 {[%emt 0:00:16]} 50. Rxg5+ {[%emt 0:00:07]} Kxg5 {[%emt 0:00:09]} 51. Ke3 {[%emt 0:00:06]} h3 {[%emt 0:11:49]} 52. gxh3 {[%emt 0:06:34]} gxh3 {[%emt 0:00:10]} 53. Kf3 {[%emt 0:00:03]} h2 {[%emt 0:00:08]} 54. Kg2 {[%emt 0:00:03]} h1=Q+ {[%emt 0:00:11]} 55. Kxh1 {[%emt 0:00:10]} Kf4 {[%emt 0:00:09]} 56. Kg2 {[%emt 0:00:09]} Ke3 {[%emt 0:00:07]} 57. b4 {[%emt 0:03:27]} Kd3 {[%emt 0:16:00]} 58. Kf3 {[%emt 0:01:06]} Kc2 {[%emt 0:00:54]} 59. Ke2 {[%emt 0:00:30]} Kb3 {[%emt 0:07:52]} 60. Kd3 {[%emt 0:03:17]} Kxb2 {[%emt 0:01:16]} 61. Kd2 {[%emt 0:00:38]} Kb3 {[%emt 0:12:17]} 62. Kc1 {[%emt 0:00:14]} Kc3 {[%emt 0:00:17]} 63. Kb1 {[%emt 0:00:26]} Kc4 {[%emt 0:00:15]} 64. Kc2 {[%emt 0:00:26]} Kxb4 {[%emt 0:00:31]} 65. Kb2 {[%emt 0:00:08]} Kc4 {[%emt 0:00:05]} 66. Kc2 {[%emt 0:00:07]} Kb4 {[%emt 0:00:08]} 67. Kb2 {[%emt 0:00:08]} 1/2-1/2

[Event "European Amateur-ch U1700 2019"]
[Site "Rhodes"]
[Date "2019.04.12"]
[Round "7.12"]
[White "Apostolakis, Ioannis"]
[Black "Diamantis, Georgios D."]
[Result "1/2-1/2"]
[ECO "D03"]
[WhiteElo "1439"]
[BlackElo "1632"]
[Annotator "NA"]
[PlyCount "42"]
[EventDate "2019.04.06"]
[EventType "swiss"]
[EventCountry "GRE"]
[SourceTitle "playchess.com"]
[Source "ChessBase"]
[SourceQuality "1"]
[TimeControl "40/5400+30:1800+30"]

1. d4 {[%emt 0:05:15]} d5 {[%emt 0:00:00]} 2. Nf3 {[%emt 0:01:22]} Nf6 {[%emt 0:00:16]} 3. Bg5 {[%emt 0:00:24]} c5 {[%emt 0:00:27]} 4. e3 {[%emt 0:00:05]} Nc6 {[%emt 0:00:28]} 5. Bxf6 {[%emt 0:00:22]} exf6 {[%emt 0:00:19]} 6. c3 {[%emt 0:00:13]} Qb6 {[%emt 0:00:27]} 7. Qc2 {[%emt 0:03:54]} Bf5 {[%emt 0:00:08]} 8. Qb3 {[%emt 0:00:55]} c4 {[%emt 0:00:27]} 9. Qxb6 {[%emt 0:00:54]} axb6 {[%emt 0:00:19]} 10. Be2 {[%emt 0:00:23]} Bd6 {[%emt 0:00:57]} 11. O-O {[%emt 0:00:12]} O-O {[%emt 0:00:18]} 12. Nbd2 {[%emt 0:00:48]} b5 {[%emt 0:00:49]} 13. a3 {[%emt 0:00:40]} Rfe8 {[%emt 0:00:30]} 14. h3 {[%emt 0:00:21]} Ra7 {[%emt 0:02:45]} 15. Ne1 {[%emt 0:03:25]} b4 {[%emt 0:01:58]} 16. e4 {[%emt 0:01:12]} Bxe4 {[%emt 0:00:31]} 17. Nxe4 {[%emt 0:00:04]} Rxe4 {[%emt 0:00:15]} 18. Bf3 {[%emt 0:00:12]} Re7 {[%emt 0:01:16]} 19. Bxd5 {[%emt 0:00:02]} Re2 {[%emt 0:01:41]} 20. Bxc4 {[%emt 0:01:34]} Rxb2 {[%emt 0:00:33]} 21. Nd3 {[%emt 0:00:42]} Rc2 {[%emt 0:00:51]} 1/2-1/2

[Event "European Amateur-ch U1700 2019"]
[Site "Rhodes"]
[Date "2019.04.13"]
[Round "8.1"]
[White "Meremyanina, Kseniya"]
[Black "Kostov, Kiril"]
[Result "1-0"]
[ECO "B26"]
[WhiteElo "1577"]
[BlackElo "1625"]
[Annotator "NA"]
[PlyCount "59"]
[EventDate "2019.04.06"]
[EventType "swiss"]
[EventCountry "GRE"]
[SourceTitle "playchess.com"]
[Source "ChessBase"]
[SourceQuality "1"]
[TimeControl "40/5400+30:1800+30"]

1. e4 {[%emt 0:00:00]} c5 {[%emt 0:00:43]} 2. Nc3 {[%emt 0:00:00]} Nc6 {[%emt 0:00:45]} 3. g3 {[%emt 0:00:15]} g6 {[%emt 0:00:51]} 4. d3 {[%emt 0:00:10]} Bg7 {[%emt 0:00:42]} 5. Be3 {[%emt 0:00:24]} d6 {[%emt 0:01:56]} 6. Qd2 {[%emt 0:00:11]} e6 {[%emt 0:01:01]} 7. Bg2 {[%emt 0:00:29]} Nge7 {[%emt 0:02:17]} 8. Bh6 {[%emt 0:00:24]} O-O {[%emt 0:01:13]} 9. Bxg7 {[%emt 0:05:15]} Kxg7 {[%emt 0:00:57]} 10. Nge2 {[%emt 0:00:30]} Qb6 {[%emt 0:03:09]} 11. O-O {[%emt 0:01:51]} Bd7 {[%emt 0:02:42]} 12. h3 {[%emt 0:01:38]} Nd4 {[%emt 0:00:58]} 13. Nxd4 {[%emt 0:04:19]} cxd4 {[%emt 0:00:38]} 14. Ne2 {[%emt 0:00:06]} Rac8 {[%emt 0:01:39]} 15. c3 {[%emt 0:02:14]} Nc6 {[%emt 0:04:31]} 16. Kh2 {[%emt 0:00:56]} dxc3 {[%emt 0:07:05]} 17. bxc3 {[%emt 0:00:42]} e5 {[%emt 0:04:05]} 18. f4 {[%emt 0:00:33]} f5 {[%emt 0:03:34]} 19. exf5 {[%emt 0:02:20]} Bxf5 {[%emt 0:05:57]} 20. fxe5 {[%emt 0:00:33]} dxe5 {[%emt 0:02:32]} 21. Rab1 {[%emt 0:08:34]} Qa6 {[%emt 0:00:53]} 22. c4 {[%emt 0:14:00]} Rfd8 {[%emt 0:01:08]} 23. Rb3 {[%emt 0:00:59]} b6 {[%emt 0:11:50]} 24. Bxc6 {[%emt 0:04:42]} Qxc4 {[%emt 0:07:30]} 25. Rxf5 {[%emt 0:03:30]} Qxc6 {[%emt 0:02:29]} 26. Rxe5 {[%emt 0:01:10]} Qf3 {[%emt 0:00:56]} 27. Nf4 {[%emt 0:01:17]} Rd6 {[%emt 0:02:33]} 28. Re7+ {[%emt 0:01:41]} Kg8 {[%emt 0:01:01]} 29. Qb2 {[%emt 0:01:45]} Rd4 {[%emt 0:01:14]} 30. Rb4 {[%emt 0:01:17]} 1-0

[Event "European Amateur-ch U1700 2019"]
[Site "Rhodes"]
[Date "2019.04.13"]
[Round "8.2"]
[White "Snokowski, Marcin"]
[Black "Kanev, Evgeny"]
[Result "0-1"]
[ECO "A08"]
[WhiteElo "1659"]
[BlackElo "1629"]
[Annotator "NA"]
[PlyCount "82"]
[EventDate "2019.04.06"]
[EventType "swiss"]
[EventCountry "GRE"]
[SourceTitle "playchess.com"]
[Source "ChessBase"]
[SourceQuality "1"]
[TimeControl "40/5400+30:1800+30"]

1. Nf3 {[%emt 0:00:00]} d5 {[%emt 0:00:00]} 2. d3 {[%emt 0:00:33]} Nf6 {[%emt 0:00:00]} 3. g3 {[%emt 0:00:27]} c5 {[%emt 0:00:01]} 4. Bg2 {[%emt 0:03:45]} g6 {[%emt 0:00:16]} 5. O-O {[%emt 0:00:14]} Bg7 {[%emt 0:00:05]} 6. c3 {[%emt 0:00:20]} Nc6 {[%emt 0:05:00]} 7. a4 {[%emt 0:06:53]} O-O {[%emt 0:00:00]} 8. Na3 {[%emt 0:03:41]} e5 {[%emt 0:00:00]} 9. e4 {[%emt 0:05:24]} dxe4 {[%emt 0:05:10]} 10. dxe4 {[%emt 0:00:10]} Qxd1 {[%emt 0:01:42]} 11. Rxd1 {[%emt 0:00:13]} Nxe4 {[%emt 0:00:02]} 12. Nxe5 {[%emt 0:00:23]} Nxc3 {[%emt 0:02:05]} 13. bxc3 {[%emt 0:25:15]} Nxe5 {[%emt 0:04:51]} 14. Be3 {[%emt 0:06:11]} Bg4 {[%emt 0:10:54]} 15. Bxc5 {[%emt 0:06:42]} Bxd1 {[%emt 0:04:34]} 16. Bxf8 {[%emt 0:00:40]} Bxf8 {[%emt 0:00:57]} 17. Rxd1 {[%emt 0:06:38]} Bxa3 {[%emt 0:00:02]} 18. Rd5 {[%emt 0:02:06]} Nc6 {[%emt 0:03:55]} 19. Rb5 {[%emt 0:03:09]} Nd8 {[%emt 0:08:17]} 20. c4 {[%emt 0:04:00]} Rb8 {[%emt 0:03:25]} 21. Bd5 {[%emt 0:06:21]} b6 {[%emt 0:00:33]} 22. a5 {[%emt 0:01:20]} Bc5 {[%emt 0:00:22]} 23. axb6 {[%emt 0:03:40]} axb6 {[%emt 0:00:09]} 24. Rb3 {[%emt 0:01:51]} Ne6 {[%emt 0:00:47]} 25. Kg2 {[%emt 0:00:51]} Re8 {[%emt 0:00:35]} 26. Bc6 {[%emt 0:01:44]} Rd8 {[%emt 0:01:43]} 27. Bd5 {[%emt 0:00:09]} Nc7 {[%emt 0:00:15]} 28. Bc6 {[%emt 0:03:09]} Rd2 {[%emt 0:00:12]} 29. Rf3 {[%emt 0:03:31]} Kg7 {[%emt 0:00:35]} 30. h4 {[%emt 0:01:34]} Rd6 {[%emt 0:01:56]} 31. Ba4 {[%emt 0:01:34]} Rf6 {[%emt 0:00:04]} 32. Rxf6 Kxf6 {[%emt 0:00:01]} 33. f4 {[%emt 0:00:51]} h6 {[%emt 0:01:03]} 34. Kf3 {[%emt 0:00:22]} Ne6 {[%emt 0:00:14]} 35. g4 {[%emt 0:00:35]} Bd6 {[%emt 0:01:51]} 36. g5+ {[%emt 0:01:02]} hxg5 {[%emt 0:00:07]} 37. hxg5+ {[%emt 0:00:04]} Ke7 {[%emt 0:00:17]} 38. f5 {[%emt 0:01:06]} Nd4+ {[%emt 0:00:15]} 39. Ke4 {[%emt 0:00:38]} Nxf5 {[%emt 0:00:03]} 40. Bc6 {[%emt 0:00:00]} Ng7 {[%emt 0:00:00]} 41. Bd5 {[%emt 0:01:13]} Ne6 {[%emt 0:00:22] Kd4 [%emt 00:01:01]} 0-1

[Event "European Amateur-ch U1700 2019"]
[Site "Rhodes"]
[Date "2019.04.13"]
[Round "8.4"]
[White "Bakhmanov, Farid"]
[Black "Pereverzev, Timofei"]
[Result "1-0"]
[ECO "B41"]
[WhiteElo "1491"]
[BlackElo "1463"]
[Annotator "NA"]
[PlyCount "105"]
[EventDate "2019.04.06"]
[EventType "swiss"]
[EventCountry "GRE"]
[SourceTitle "playchess.com"]
[Source "ChessBase"]
[SourceQuality "1"]
[TimeControl "40/5400+30:1800+30"]

1. e4 {[%emt 0:00:00]} c5 {[%emt 0:00:00]} 2. Nf3 {[%emt 0:00:00]} e6 {[%emt 0:00:00]} 3. d4 {[%emt 0:00:00]} cxd4 {[%emt 0:00:00]} 4. Nxd4 {[%emt 0:00:00]} a6 {[%emt 0:00:00]} 5. c4 {[%emt 0:00:00]} Nf6 {[%emt 0:00:00]} 6. Nc3 {[%emt 0:00:15]} Qc7 {[%emt 0:00:00]} 7. Bd3 {[%emt 0:00:25]} Nc6 {[%emt 0:00:42]} 8. Nxc6 {[%emt 0:00:08]} dxc6 {[%emt 0:00:06]} 9. Be3 {[%emt 0:00:08]} e5 {[%emt 0:00:02]} 10. h3 {[%emt 0:00:34]} Be6 {[%emt 0:00:09]} 11. O-O {[%emt 0:00:12]} Rd8 {[%emt 0:00:24]} 12. Qc2 {[%emt 0:02:23]} Be7 {[%emt 0:00:24]} 13. Rac1 {[%emt 0:02:40]} O-O {[%emt 0:00:13]} 14. Rfd1 {[%emt 0:02:28]} Nd7 {[%emt 0:02:04]} 15. a3 {[%emt 0:06:12]} Nc5 {[%emt 0:01:03]} 16. Bf1 {[%emt 0:01:13]} a5 {[%emt 0:03:04]} 17. Nd5 {[%emt 0:19:07]} cxd5 {[%emt 0:03:39]} 18. cxd5 {[%emt 0:00:41]} b6 {[%emt 0:19:41]} 19. dxe6 {[%emt 0:02:09]} fxe6 {[%emt 0:00:07]} 20. b4 {[%emt 0:01:09]} Na6 {[%emt 0:06:26]} 21. Qxc7 {[%emt 0:00:47]} Nxc7 {[%emt 0:00:06]} 22. Rxd8 {[%emt 0:07:12]} Bxd8 {[%emt 0:00:09]} 23. Bxb6 {[%emt 0:00:12]} Rf7 {[%emt 0:01:36]} 24. Bxa5 {[%emt 0:00:59]} Rd7 {[%emt 0:00:06]} 25. b5 {[%emt 0:07:57]} Ne8 {[%emt 0:06:08]} 26. Bxd8 {[%emt 0:00:30]} Rxd8 {[%emt 0:00:05]} 27. b6 {[%emt 0:01:51]} Rb8 {[%emt 0:00:10]} 28. Rb1 {[%emt 0:00:17]} Kf7 {[%emt 0:00:04]} 29. a4 {[%emt 0:00:34]} Nd6 {[%emt 0:00:36]} 30. a5 {[%emt 0:00:51]} Nc8 {[%emt 0:00:30]} 31. b7 {[%emt 0:01:36]} Na7 {[%emt 0:00:08]} 32. a6 {[%emt 0:02:08]} Ke7 {[%emt 0:00:27]} 33. Rd1 {[%emt 0:06:00]} g6 {[%emt 0:01:18]} 34. g3 {[%emt 0:02:43]} Rf8 {[%emt 0:00:11]} 35. f4 {[%emt 0:02:56]} exf4 {[%emt 0:00:09]} 36. gxf4 {[%emt 0:00:05]} Rb8 {[%emt 0:00:04]} 37. h4 {[%emt 0:00:25]} h6 {[%emt 0:00:08]} 38. e5 {[%emt 0:04:25]} g5 {[%emt 0:01:22]} 39. hxg5 {[%emt 0:01:15]} hxg5 {[%emt 0:00:11]} 40. fxg5 {[%emt 0:00:00]} Kf7 {[%emt 0:00:00]} 41. Bd3 {[%emt 0:05:26]} Rg8 {[%emt 0:02:13]} 42. g6+ {[%emt 0:00:48]} Ke7 {[%emt 0:02:25]} 43. Rc1 {[%emt 0:00:37]} Rb8 {[%emt 0:00:55]} 44. Kf2 {[%emt 0:00:18]} Rf8+ {[%emt 0:00:09]} 45. Kg3 {[%emt 0:00:21]} Rd8 {[%emt 0:00:21]} 46. Rc7+ {[%emt 0:03:07]} Kf8 {[%emt 0:00:05]} 47. Kg4 {[%emt 0:00:27]} Kg8 {[%emt 0:00:07]} 48. Kg5 {[%emt 0:00:57]} Kf8 {[%emt 0:00:18]} 49. Bc4 {[%emt 0:00:27]} Re8 {[%emt 0:00:08]} 50. g7+ {[%emt 0:00:55]} Kg8 {[%emt 0:00:06]} 51. Bxe6+ {[%emt 0:00:12]} Rxe6 {[%emt 0:00:21]} 52. b8=Q+ {[%emt 0:00:20]} Kh7 {[%emt 0:00:03]} 53. g8=Q# {[%emt 0:00:19]} 1-0